[Event "Early-Titled-Tuesday-Blitz-May-14-2024"]
[Site "Chess.com"]
[Date "2024.05.14"]
[Round "6"]
[White "JanMur7"]
[Black "HajiyevKanan"]
[Result "0-1"]
[WhiteElo "2271"]
[BlackElo "2482"]
[TimeControl "180+1"]
[EndTime "9:06:11 PDT"]
[Termination "HajiyevKanan won by resignation"]

1. c4 {[%clk 0:03:00.9]} 1... c6 {[%clk 0:02:00.2]} 2. d4 {[%clk 0:02:57.1]}
2... d5 {[%clk 0:02:01.1]} 3. Nc3 {[%clk 0:02:56.8]} 3... Nf6 {[%clk 0:02:01.1]}
4. Nf3 {[%clk 0:02:56.6]} 4... a6 {[%clk 0:02:01.9]} 5. cxd5 {[%clk 0:02:56.1]}
5... cxd5 {[%clk 0:02:02.8]} 6. Bf4 {[%clk 0:02:54.8]} 6... Nc6 {[%clk
0:02:03.7]} 7. e3 {[%clk 0:02:54.7]} 7... Bg4 {[%clk 0:02:04.4]} 8. Be2 {[%clk
0:02:54.8]} 8... e6 {[%clk 0:02:04.8]} 9. Ne5 {[%clk 0:02:54.8]} 9... Bxe2
{[%clk 0:02:04.6]} 10. Qxe2 {[%clk 0:02:54.7]} 10... Nxe5 {[%clk 0:02:05.3]} 11.
Bxe5 {[%clk 0:02:54.1]} 11... Bb4 {[%clk 0:02:04.9]} 12. O-O {[%clk 0:02:53.4]}
12... O-O {[%clk 0:02:05.1]} 13. a3 {[%clk 0:02:52.1]} 13... Bxc3 {[%clk
0:02:05.1]} 14. bxc3 {[%clk 0:02:53]} 14... Rc8 {[%clk 0:02:05.2]} 15. Bxf6
{[%clk 0:02:45.7]} 15... Qxf6 {[%clk 0:02:04.7]} 16. Rfb1 {[%clk 0:02:45.7]}
16... Qe7 {[%clk 0:02:04.9]} 17. Qb2 {[%clk 0:02:44.3]} 17... Rc7 {[%clk
0:02:05.1]} 18. Qb6 {[%clk 0:02:19.1]} 18... Rfc8 {[%clk 0:01:58]} 19. h3 {[%clk
0:02:13.9]} 19... g6 {[%clk 0:01:55.7]} 20. a4 {[%clk 0:02:10.5]} 20... Rd7
{[%clk 0:01:54.5]} 21. Rb3 {[%clk 0:02:06.7]} 21... Rc6 {[%clk 0:01:54.1]} 22.
Qa7 {[%clk 0:02:04.9]} 22... Kg7 {[%clk 0:01:46.5]} 23. Rab1 {[%clk 0:02:01.5]}
23... b5 {[%clk 0:01:45.1]} 24. Qb8 {[%clk 0:02:00.3]} 24... bxa4 {[%clk
0:01:40.8]} 25. Rb7 {[%clk 0:01:54.6]} 25... Rcc7 {[%clk 0:01:33.2]} 26. R7b4
{[%clk 0:01:41.6]} 26... a3 {[%clk 0:01:28.6]} 27. R1b3 {[%clk 0:01:34]} 27...
a2 {[%clk 0:01:28.6]} 28. Ra4 {[%clk 0:01:33.8]} 28... Rb7 {[%clk 0:01:27.4]}
29. Rxb7 {[%clk 0:01:16]} 29... Rxb7 {[%clk 0:01:28.3]} 30. Qe5+ {[%clk
0:01:08]} 30... f6 {[%clk 0:01:28.3]} 0-1

[Event "Early-Titled-Tuesday-Blitz-May-14-2024"]
[Site "Chess.com"]
[Date "2024.05.14"]
[Round "6"]
[White "GothamChess"]
[Black "Iskusnyh"]
[Result "1-0"]
[WhiteElo "2730"]
[BlackElo "2581"]
[TimeControl "180+1"]
[EndTime "9:06:17 PDT"]
[Termination "GothamChess won by resignation"]

1. e4 {[%clk 0:03:00.9]} 1... e6 {[%clk 0:02:57.9]} 2. d4 {[%clk 0:02:59.1]}
2... d5 {[%clk 0:02:58.4]} 3. exd5 {[%clk 0:03:00]} 3... exd5 {[%clk 0:02:57.4]}
4. h3 {[%clk 0:03:00.5]} 4... Nf6 {[%clk 0:02:50.7]} 5. Nf3 {[%clk 0:03:00.3]}
5... c5 {[%clk 0:02:49.5]} 6. Bd3 {[%clk 0:02:55.9]} 6... Nc6 {[%clk 0:02:47.6]}
7. O-O {[%clk 0:02:52.7]} 7... Be7 {[%clk 0:02:47]} 8. dxc5 {[%clk 0:02:52.7]}
8... Bxc5 {[%clk 0:02:47]} 9. Re1+ {[%clk 0:02:50.6]} 9... Be6 {[%clk
0:02:46.9]} 10. Nbd2 {[%clk 0:02:41.8]} 10... O-O {[%clk 0:02:43.2]} 11. Nb3
{[%clk 0:02:41.3]} 11... Bb6 {[%clk 0:02:43]} 12. c3 {[%clk 0:02:40]} 12... h6
{[%clk 0:01:45.8]} 13. Be3 {[%clk 0:02:37.4]} 13... Re8 {[%clk 0:01:40.9]} 14.
Bxb6 {[%clk 0:02:32.4]} 14... Qxb6 {[%clk 0:01:41.8]} 15. Qd2 {[%clk 0:02:07]}
15... Ne4 {[%clk 0:01:34.8]} 16. Qe3 {[%clk 0:02:06.1]} 16... Qxe3 {[%clk
0:01:23.5]} 17. Rxe3 {[%clk 0:02:05.7]} 17... f5 {[%clk 0:01:19.6]} 18. Nbd4
{[%clk 0:01:56.5]} 18... Bd7 {[%clk 0:01:18.5]} 19. Rae1 {[%clk 0:01:53.3]}
19... g6 {[%clk 0:01:16.4]} 20. Bc2 {[%clk 0:01:47]} 20... Kg7 {[%clk
0:01:14.2]} 21. Bb3 {[%clk 0:01:44.7]} 21... Ne7 {[%clk 0:01:08.5]} 22. Ne5
{[%clk 0:01:41.6]} 22... Rad8 {[%clk 0:01:02]} 23. Nxd7 {[%clk 0:01:37]} 23...
Rxd7 {[%clk 0:01:02.4]} 24. Ba4 {[%clk 0:01:37.4]} 24... Red8 {[%clk 0:01:02]}
25. Bxd7 {[%clk 0:01:35.3]} 25... Rxd7 {[%clk 0:01:02.4]} 26. f3 {[%clk
0:01:35.8]} 1-0

[Event "Early-Titled-Tuesday-Blitz-May-14-2024"]
[Site "Chess.com"]
[Date "2024.05.14"]
[Round "6"]
[White "Fjal"]
[Black "aljado"]
[Result "1-0"]
[WhiteElo "2329"]
[BlackElo "2138"]
[TimeControl "180+1"]
[EndTime "9:06:19 PDT"]
[Termination "Fjal won by resignation"]

1. Nf3 {[%clk 0:02:41.8]} 1... Nf6 {[%clk 0:02:58.9]} 2. g3 {[%clk 0:02:41.9]}
2... g6 {[%clk 0:02:58.8]} 3. Bg2 {[%clk 0:02:42.8]} 3... Bg7 {[%clk 0:02:58.7]}
4. O-O {[%clk 0:02:42.4]} 4... O-O {[%clk 0:02:58.3]} 5. d3 {[%clk 0:02:41.4]}
5... d6 {[%clk 0:02:57.6]} 6. e4 {[%clk 0:02:41.9]} 6... e5 {[%clk 0:02:57.4]}
7. Nc3 {[%clk 0:02:42.6]} 7... c6 {[%clk 0:02:55.7]} 8. a4 {[%clk 0:02:42.6]}
8... h6 {[%clk 0:02:53.5]} 9. Re1 {[%clk 0:02:42.1]} 9... Be6 {[%clk 0:02:53.1]}
10. Be3 {[%clk 0:02:40.6]} 10... Nbd7 {[%clk 0:02:51.2]} 11. d4 {[%clk
0:02:40.9]} 11... Ng4 {[%clk 0:02:44.6]} 12. Bc1 {[%clk 0:02:30.6]} 12... Qb6
{[%clk 0:02:34.6]} 13. a5 {[%clk 0:02:27.9]} 13... Qc7 {[%clk 0:02:26.9]} 14. d5
{[%clk 0:02:23.6]} 14... cxd5 {[%clk 0:02:25.3]} 15. exd5 {[%clk 0:02:24.5]}
15... Bf5 {[%clk 0:02:21.4]} 16. h3 {[%clk 0:02:09.9]} 16... Ngf6 {[%clk
0:02:21.1]} 17. g4 {[%clk 0:02:09]} 17... Nxg4 {[%clk 0:02:21]} 18. hxg4 {[%clk
0:02:02.1]} 18... Bxg4 {[%clk 0:02:21.4]} 19. Qd3 {[%clk 0:01:56.9]} 19... f5
{[%clk 0:02:17.9]} 20. Nh2 {[%clk 0:01:56.7]} 20... Bh5 {[%clk 0:02:06.7]} 21.
Nb5 {[%clk 0:01:52]} 21... Qb8 {[%clk 0:01:56.4]} 22. Qa3 {[%clk 0:01:48.7]}
22... Nc5 {[%clk 0:01:56]} 23. Be3 {[%clk 0:01:48]} 23... b6 {[%clk 0:01:28.7]}
24. axb6 {[%clk 0:01:44.1]} 24... axb6 {[%clk 0:01:27.5]} 25. Qxa8 {[%clk
0:01:43.5]} 25... Qxa8 {[%clk 0:01:27.1]} 26. Rxa8 {[%clk 0:01:44.4]} 26... Rxa8
{[%clk 0:01:26.5]} 27. Nxd6 {[%clk 0:01:45.1]} 27... Ra2 {[%clk 0:01:23.5]} 28.
Nc4 {[%clk 0:01:37.4]} 28... Nd7 {[%clk 0:01:19]} 29. d6 {[%clk 0:01:27.4]}
29... e4 {[%clk 0:01:14.1]} 30. Nxb6 {[%clk 0:01:26.3]} 30... Nxb6 {[%clk
0:01:11.7]} 31. Bxb6 {[%clk 0:01:27.2]} 31... Rxb2 {[%clk 0:01:11.6]} 32. d7
{[%clk 0:01:27.4]} 1-0

[Event "Early-Titled-Tuesday-Blitz-May-14-2024"]
[Site "Chess.com"]
[Date "2024.05.14"]
[Round "6"]
[White "rhwr"]
[Black "laurenzchess"]
[Result "0-1"]
[WhiteElo "2327"]
[BlackElo "2495"]
[TimeControl "180+1"]
[EndTime "9:06:21 PDT"]
[Termination "laurenzchess won by resignation"]

1. e4 {[%clk 0:02:51]} 1... Nc6 {[%clk 0:02:58.6]} 2. Nc3 {[%clk 0:02:42.2]}
2... e6 {[%clk 0:02:50.2]} 3. d4 {[%clk 0:02:38.6]} 3... d5 {[%clk 0:02:50.4]}
4. Bb5 {[%clk 0:02:33.2]} 4... Ne7 {[%clk 0:02:37.6]} 5. Nf3 {[%clk 0:02:25.4]}
5... a6 {[%clk 0:02:37.7]} 6. Bxc6+ {[%clk 0:02:19.3]} 6... Nxc6 {[%clk
0:02:38.6]} 7. e5 {[%clk 0:02:16.6]} 7... f6 {[%clk 0:02:30.8]} 8. O-O {[%clk
0:02:14.8]} 8... Bb4 {[%clk 0:02:21.8]} 9. Bd2 {[%clk 0:02:03.2]} 9... O-O
{[%clk 0:02:14]} 10. a3 {[%clk 0:01:56.2]} 10... Ba5 {[%clk 0:02:11.2]} 11. exf6
{[%clk 0:01:45.3]} 11... Qxf6 {[%clk 0:02:10.5]} 12. Ne2 {[%clk 0:01:41.1]}
12... Bb6 {[%clk 0:02:09]} 13. c3 {[%clk 0:01:35.9]} 13... e5 {[%clk 0:02:08]}
14. Bg5 {[%clk 0:01:27.3]} 14... Qd6 {[%clk 0:02:06.3]} 15. dxe5 {[%clk
0:01:03.1]} 15... Nxe5 {[%clk 0:02:04.5]} 16. Nxe5 {[%clk 0:01:02.7]} 16... Qxe5
{[%clk 0:02:05.4]} 17. Bh4 {[%clk 0:01:01.5]} 17... Bg4 {[%clk 0:02:03.7]} 18.
Re1 {[%clk 0:00:56.4]} 18... Rae8 {[%clk 0:02:01.7]} 19. Bg3 {[%clk 0:00:48.9]}
19... Bxe2 {[%clk 0:01:59.8]} 20. Bxe5 {[%clk 0:00:44.6]} 20... Bxf2+ {[%clk
0:01:59.8]} 21. Kh1 {[%clk 0:00:43.7]} 21... Bxd1 {[%clk 0:02:00.4]} 22. Rexd1
{[%clk 0:00:17.4]} 22... Rxe5 {[%clk 0:01:53.6]} 23. g3 {[%clk 0:00:17.6]} 23...
c6 {[%clk 0:01:52.7]} 24. Kg2 {[%clk 0:00:17.5]} 24... Re2 {[%clk 0:01:52.5]}
25. Kh3 {[%clk 0:00:16.5]} 0-1

[Event "Early-Titled-Tuesday-Blitz-May-14-2024"]
[Site "Chess.com"]
[Date "2024.05.14"]
[Round "6"]
[White "TregubovP"]
[Black "aloe_normansen"]
[Result "1/2-1/2"]
[WhiteElo "2706"]
[BlackElo "2574"]
[TimeControl "180+1"]
[EndTime "9:06:23 PDT"]
[Termination "Game drawn by repetition"]

1. e4 {[%clk 0:03:00.9]} 1... c5 {[%clk 0:02:59.2]} 2. Nf3 {[%clk 0:03:00.9]}
2... d6 {[%clk 0:02:59.7]} 3. d4 {[%clk 0:02:59.8]} 3... cxd4 {[%clk 0:03:00.6]}
4. Qxd4 {[%clk 0:03:00.1]} 4... Nf6 {[%clk 0:03:00.7]} 5. Nc3 {[%clk 0:02:59.8]}
5... a6 {[%clk 0:03:01.1]} 6. Be2 {[%clk 0:02:53]} 6... Nc6 {[%clk 0:03:01.4]}
7. Qd3 {[%clk 0:02:52.8]} 7... g6 {[%clk 0:02:56.4]} 8. O-O {[%clk 0:02:52.5]}
8... Bg7 {[%clk 0:02:56.7]} 9. Nd5 {[%clk 0:02:52.6]} 9... O-O {[%clk
0:02:56.3]} 10. c3 {[%clk 0:02:52.7]} 10... Nxd5 {[%clk 0:02:51.2]} 11. exd5
{[%clk 0:02:52.2]} 11... Ne5 {[%clk 0:02:51.5]} 12. Nxe5 {[%clk 0:02:52.7]}
12... Bxe5 {[%clk 0:02:52.4]} 13. Bh6 {[%clk 0:02:49.7]} 13... Bg7 {[%clk
0:02:51.7]} 14. Bxg7 {[%clk 0:02:48.2]} 14... Kxg7 {[%clk 0:02:52.6]} 15. Qd4+
{[%clk 0:02:44.1]} 15... Kg8 {[%clk 0:02:51.9]} 16. Rfe1 {[%clk 0:02:41.5]}
16... Bf5 {[%clk 0:02:47.4]} 17. Bf3 {[%clk 0:02:37.3]} 17... Rc8 {[%clk
0:02:39.9]} 18. a4 {[%clk 0:02:33.1]} 18... Re8 {[%clk 0:02:35.4]} 19. h4 {[%clk
0:02:01.3]} 19... Qc7 {[%clk 0:02:20.5]} 20. h5 {[%clk 0:01:53.8]} 20... Qc4
{[%clk 0:02:17.3]} 21. Qb6 {[%clk 0:01:37.5]} 21... Rc7 {[%clk 0:01:32]} 22. h6
{[%clk 0:01:32]} 22... Rec8 {[%clk 0:01:25.8]} 23. Re3 {[%clk 0:01:28.2]} 23...
Qh4 {[%clk 0:01:25]} 24. Rae1 {[%clk 0:01:22.1]} 24... Qxh6 {[%clk 0:01:22.6]}
25. Rxe7 {[%clk 0:01:00]} 25... Rxe7 {[%clk 0:01:23.5]} 26. Rxe7 {[%clk
0:00:59.7]} 26... Qc1+ {[%clk 0:01:24]} 27. Kh2 {[%clk 0:01:00.2]} 27... Qh6+
{[%clk 0:01:21.3]} 28. Kg1 {[%clk 0:01:00.1]} 28... Qc1+ {[%clk 0:01:21.1]} 29.
Kh2 {[%clk 0:00:58.9]} 29... Qh6+ {[%clk 0:01:21]} 30. Kg1 {[%clk 0:00:58.9]}
1/2-1/2

[Event "Early-Titled-Tuesday-Blitz-May-14-2024"]
[Site "Chess.com"]
[Date "2024.05.14"]
[Round "6"]
[White "Manukyan_Artak"]
[Black "Larina_Maria"]
[Result "1-0"]
[WhiteElo "2562"]
[BlackElo "2387"]
[TimeControl "180+1"]
[EndTime "9:06:37 PDT"]
[Termination "Manukyan_Artak won by resignation"]

1. e4 {[%clk 0:02:55.2]} 1... c6 {[%clk 0:02:59.8]} 2. d4 {[%clk 0:02:54.3]}
2... d5 {[%clk 0:03:00.4]} 3. e5 {[%clk 0:02:54.5]} 3... Bf5 {[%clk 0:03:00.2]}
4. c4 {[%clk 0:02:54.9]} 4... e6 {[%clk 0:02:58]} 5. Nc3 {[%clk 0:02:54.9]} 5...
h6 {[%clk 0:02:54.7]} 6. Qb3 {[%clk 0:02:54.2]} 6... Qb6 {[%clk 0:02:53.8]} 7.
c5 {[%clk 0:02:53.7]} 7... Qxb3 {[%clk 0:02:52]} 8. axb3 {[%clk 0:02:54.6]} 8...
Nd7 {[%clk 0:02:49.3]} 9. b4 {[%clk 0:02:54.9]} 9... a6 {[%clk 0:02:47.9]} 10.
b5 {[%clk 0:02:55.2]} 10... cxb5 {[%clk 0:02:40.1]} 11. Nxb5 {[%clk 0:02:50.2]}
11... Rc8 {[%clk 0:02:39.5]} 12. Nd6+ {[%clk 0:02:43.2]} 12... Bxd6 {[%clk
0:02:39.6]} 13. exd6 {[%clk 0:02:44.1]} 13... e5 {[%clk 0:02:36.7]} 14. b4
{[%clk 0:02:38.8]} 14... exd4 {[%clk 0:02:34.4]} 15. Bb2 {[%clk 0:02:36.2]}
15... Ngf6 {[%clk 0:02:27.5]} 16. Bxd4 {[%clk 0:02:26.2]} 16... O-O {[%clk
0:02:27.3]} 17. f3 {[%clk 0:02:26.7]} 17... Rfe8+ {[%clk 0:02:27.3]} 18. Kd2
{[%clk 0:02:20.7]} 18... Ne5 {[%clk 0:01:56.5]} 19. Bxe5 {[%clk 0:02:07.6]}
19... Rxe5 {[%clk 0:01:55.9]} 20. Ne2 {[%clk 0:02:06.9]} 20... Bd7 {[%clk
0:01:42]} 21. Nd4 {[%clk 0:01:55.7]} 21... Nh5 {[%clk 0:01:25.9]} 22. g3 {[%clk
0:01:47.6]} 22... Nf6 {[%clk 0:01:13.4]} 23. Bd3 {[%clk 0:01:43.6]} 23... Bh3
{[%clk 0:01:07.5]} 24. Rhe1 {[%clk 0:01:37.7]} 24... Rce8 {[%clk 0:01:03.7]} 25.
Rxe5 {[%clk 0:01:32.5]} 25... Rxe5 {[%clk 0:01:04.6]} 26. b5 {[%clk 0:01:32.7]}
26... Nd7 {[%clk 0:00:53.9]} 27. c6 {[%clk 0:01:29]} 27... bxc6 {[%clk
0:00:53.5]} 28. bxc6 {[%clk 0:01:27.2]} 28... Nc5 {[%clk 0:00:52.9]} 29. d7
{[%clk 0:01:20.9]} 29... Bxd7 {[%clk 0:00:48.5]} 30. cxd7 {[%clk 0:01:21.8]}
30... Nxd7 {[%clk 0:00:49]} 31. Rxa6 {[%clk 0:01:20.6]} 31... Nc5 {[%clk
0:00:49.9]} 32. Ra8+ {[%clk 0:01:20.8]} 1-0

[Event "Early-Titled-Tuesday-Blitz-May-14-2024"]
[Site "Chess.com"]
[Date "2024.05.14"]
[Round "6"]
[White "VerdeNotte"]
[Black "Vasily_IM"]
[Result "1-0"]
[WhiteElo "2859"]
[BlackElo "2602"]
[TimeControl "180+1"]
[EndTime "9:06:39 PDT"]
[Termination "VerdeNotte won by resignation"]

1. e4 {[%clk 0:03:00.9]} 1... e5 {[%clk 0:02:59.4]} 2. Nf3 {[%clk 0:03:00.3]}
2... Nf6 {[%clk 0:02:59.6]} 3. d4 {[%clk 0:02:59.1]} 3... Nxe4 {[%clk
0:02:58.9]} 4. Bd3 {[%clk 0:02:59]} 4... d5 {[%clk 0:02:59.1]} 5. Nxe5 {[%clk
0:02:59.3]} 5... Nd7 {[%clk 0:02:58.7]} 6. Nc3 {[%clk 0:02:59.3]} 6... Nxc3
{[%clk 0:02:56.8]} 7. bxc3 {[%clk 0:02:59.3]} 7... Nxe5 {[%clk 0:02:57]} 8. dxe5
{[%clk 0:02:59.3]} 8... Be7 {[%clk 0:02:57.5]} 9. O-O {[%clk 0:02:59.2]} 9...
O-O {[%clk 0:02:57]} 10. Qh5 {[%clk 0:02:50.7]} 10... g6 {[%clk 0:02:56.3]} 11.
Qf3 {[%clk 0:02:44.2]} 11... f6 {[%clk 0:02:53]} 12. Bh6 {[%clk 0:02:42.3]}
12... Rf7 {[%clk 0:02:50.5]} 13. Qg3 {[%clk 0:02:39.3]} 13... Bf8 {[%clk
0:02:22.3]} 14. Bxf8 {[%clk 0:02:26.3]} 14... Qxf8 {[%clk 0:02:20.8]} 15. exf6
{[%clk 0:02:26.3]} 15... c6 {[%clk 0:02:05.8]} 16. c4 {[%clk 0:02:26.6]} 16...
Rxf6 {[%clk 0:01:58.6]} 17. cxd5 {[%clk 0:02:26.8]} 17... cxd5 {[%clk
0:01:58.4]} 18. Rab1 {[%clk 0:02:22]} 18... b6 {[%clk 0:01:52.7]} 19. h4 {[%clk
0:02:22.3]} 19... Bf5 {[%clk 0:01:50.8]} 20. h5 {[%clk 0:02:15.1]} 20... Re8
{[%clk 0:01:42.8]} 21. Bxf5 {[%clk 0:02:12]} 21... Rxf5 {[%clk 0:01:34.4]} 22.
hxg6 {[%clk 0:02:12.6]} 22... Re6 {[%clk 0:01:17.4]} 23. gxh7+ {[%clk
0:01:57.1]} 23... Kxh7 {[%clk 0:01:16.9]} 24. Rfe1 {[%clk 0:01:47.2]} 24... Rg6
{[%clk 0:01:16.2]} 25. Qh4+ {[%clk 0:01:44.3]} 25... Rh6 {[%clk 0:01:12]} 26.
Re7+ {[%clk 0:01:42.3]} 26... Kh8 {[%clk 0:01:06.9]} 27. Qd4+ {[%clk 0:01:41.1]}
27... Kg8 {[%clk 0:00:59.7]} 28. Rbe1 {[%clk 0:01:29.9]} 28... Qf6 {[%clk
0:00:52.1]} 29. Re8+ {[%clk 0:01:18.5]} 29... Kf7 {[%clk 0:00:49.9]} 30. R1e7+
{[%clk 0:01:18.4]} 30... Qxe7 {[%clk 0:00:49.4]} 31. Rxe7+ {[%clk 0:01:19.3]}
1-0

[Event "Early-Titled-Tuesday-Blitz-May-14-2024"]
[Site "Chess.com"]
[Date "2024.05.14"]
[Round "6"]
[White "Felix-Rose"]
[Black "ccccvhhhj"]
[Result "0-1"]
[WhiteElo "2253"]
[BlackElo "2448"]
[TimeControl "180+1"]
[EndTime "9:06:42 PDT"]
[Termination "ccccvhhhj won by resignation"]

1. e4 {[%clk 0:03:00.9]} 1... e6 {[%clk 0:02:58.8]} 2. d4 {[%clk 0:02:57.6]}
2... d5 {[%clk 0:02:59.7]} 3. Nc3 {[%clk 0:02:57.1]} 3... Bb4 {[%clk 0:02:59.6]}
4. e5 {[%clk 0:02:57.2]} 4... c5 {[%clk 0:02:58.9]} 5. a3 {[%clk 0:02:57.3]}
5... Bxc3+ {[%clk 0:02:59.5]} 6. bxc3 {[%clk 0:02:58]} 6... Ne7 {[%clk
0:03:00.4]} 7. Qg4 {[%clk 0:02:58]} 7... Kf8 {[%clk 0:03:00.5]} 8. Bd3 {[%clk
0:02:52.2]} 8... Qa5 {[%clk 0:03:01]} 9. Bd2 {[%clk 0:02:49]} 9... Qa4 {[%clk
0:03:01.6]} 10. Qd1 {[%clk 0:02:46.9]} 10... Nbc6 {[%clk 0:02:58.2]} 11. Nf3
{[%clk 0:02:30.8]} 11... b6 {[%clk 0:02:56]} 12. dxc5 {[%clk 0:02:27.8]} 12...
bxc5 {[%clk 0:02:55.6]} 13. O-O {[%clk 0:02:28.2]} 13... Ba6 {[%clk 0:02:54.2]}
14. Bxa6 {[%clk 0:02:26]} 14... Qxa6 {[%clk 0:02:55.1]} 15. a4 {[%clk
0:02:26.3]} 15... h6 {[%clk 0:02:53.5]} 16. Re1 {[%clk 0:02:25.2]} 16... Qc4
{[%clk 0:02:53.8]} 17. Qe2 {[%clk 0:01:52.3]} 17... Qxe2 {[%clk 0:02:47.4]} 18.
Rxe2 {[%clk 0:01:53.2]} 18... Ke8 {[%clk 0:02:46.3]} 19. c4 {[%clk 0:01:50.6]}
19... d4 {[%clk 0:02:44.2]} 20. Rb1 {[%clk 0:01:44.1]} 20... Rb8 {[%clk
0:02:44.2]} 21. Ree1 {[%clk 0:01:44.6]} 21... Kd7 {[%clk 0:02:44.3]} 22. Rb5
{[%clk 0:01:43]} 22... Rxb5 {[%clk 0:02:39.5]} 23. cxb5 {[%clk 0:01:34.9]} 23...
Nb8 {[%clk 0:02:32]} 24. c3 {[%clk 0:01:34]} 24... dxc3 {[%clk 0:02:27.4]} 25.
Bxc3 {[%clk 0:01:33.3]} 25... Nd5 {[%clk 0:02:28.3]} 26. Ba5 {[%clk 0:01:31.3]}
26... Rc8 {[%clk 0:02:22.4]} 27. Rc1 {[%clk 0:01:30.5]} 27... g5 {[%clk
0:02:20.9]} 28. Nd2 {[%clk 0:01:29.2]} 28... Nf4 {[%clk 0:02:18.1]} 29. Rc4
{[%clk 0:01:21.2]} 29... Nd3 {[%clk 0:02:08]} 30. Ne4 {[%clk 0:01:15.6]} 30...
Ke7 {[%clk 0:01:57.2]} 31. Bc3 {[%clk 0:00:58.5]} 31... Nd7 {[%clk 0:01:55.4]}
32. Nd6 {[%clk 0:00:56.7]} 32... Rb8 {[%clk 0:01:47.3]} 33. g3 {[%clk
0:00:51.1]} 33... N3xe5 {[%clk 0:01:40.5]} 34. Bxe5 {[%clk 0:00:37]} 34... Nxe5
{[%clk 0:01:40.9]} 0-1

[Event "Early-Titled-Tuesday-Blitz-May-14-2024"]
[Site "Chess.com"]
[Date "2024.05.14"]
[Round "6"]
[White "Nouali_Mohamed"]
[Black "FREDERICKtheMATE"]
[Result "1-0"]
[WhiteElo "2577"]
[BlackElo "2669"]
[TimeControl "180+1"]
[EndTime "9:06:43 PDT"]
[Termination "Nouali_Mohamed won by resignation"]

1. e4 {[%clk 0:03:00.7]} 1... c6 {[%clk 0:03:00.9]} 2. d4 {[%clk 0:03:00.8]}
2... d5 {[%clk 0:03:01.8]} 3. e5 {[%clk 0:03:00.1]} 3... Bf5 {[%clk 0:03:01.1]}
4. Nc3 {[%clk 0:03:00.1]} 4... e6 {[%clk 0:02:57.8]} 5. g4 {[%clk 0:03:00.3]}
5... Bg6 {[%clk 0:02:57.6]} 6. Nge2 {[%clk 0:03:00.6]} 6... h6 {[%clk
0:02:54.9]} 7. Be3 {[%clk 0:02:59.1]} 7... b5 {[%clk 0:02:53.3]} 8. Bg2 {[%clk
0:02:40.9]} 8... Nd7 {[%clk 0:02:52.6]} 9. Ng3 {[%clk 0:02:36]} 9... Be7 {[%clk
0:02:45.3]} 10. f4 {[%clk 0:02:31.6]} 10... Bh4 {[%clk 0:02:45]} 11. O-O {[%clk
0:02:31.8]} 11... Bxg3 {[%clk 0:02:43.2]} 12. hxg3 {[%clk 0:02:32.7]} 12... Ne7
{[%clk 0:02:43.4]} 13. Bh3 {[%clk 0:02:18.6]} 13... h5 {[%clk 0:02:42.5]} 14. f5
{[%clk 0:02:08.1]} 14... hxg4 {[%clk 0:02:35.5]} 15. fxg6 {[%clk 0:02:07.2]}
15... gxh3 {[%clk 0:02:32.3]} 16. gxf7+ {[%clk 0:01:54.1]} 16... Kf8 {[%clk
0:02:32.1]} 17. Bg5 {[%clk 0:01:40.1]} 17... Nb6 {[%clk 0:02:12.4]} 18. Qg4
{[%clk 0:01:33.2]} 18... Qd7 {[%clk 0:02:12.1]} 19. Bxe7+ {[%clk 0:01:26]} 19...
Qxe7 {[%clk 0:02:13]} 20. Ne2 {[%clk 0:01:26.5]} 20... h2+ {[%clk 0:01:59.1]}
21. Kh1 {[%clk 0:01:25]} 21... Rh6 {[%clk 0:01:58.7]} 22. Nf4 {[%clk 0:01:20.2]}
22... g5 {[%clk 0:01:57.7]} 23. Nh5 {[%clk 0:01:09.5]} 23... Nc4 {[%clk
0:01:55.8]} 24. Nf6 {[%clk 0:00:50.8]} 24... Rg6 {[%clk 0:01:35.9]} 25. Qh5
{[%clk 0:00:46.9]} 25... Qxf7 {[%clk 0:01:30.5]} 26. Nd7+ {[%clk 0:00:40]} 26...
Kg7 {[%clk 0:01:28.5]} 27. Rxf7+ {[%clk 0:00:38.9]} 27... Kxf7 {[%clk
0:01:29.4]} 28. Qh7+ {[%clk 0:00:36]} 28... Rg7 {[%clk 0:01:29.8]} 29. Rf1+
{[%clk 0:00:35.5]} 29... Ke7 {[%clk 0:01:30.2]} 30. Qxg7+ {[%clk 0:00:35]} 30...
Kd8 {[%clk 0:01:31.1]} 31. Nc5 {[%clk 0:00:33]} 1-0

[Event "Early-Titled-Tuesday-Blitz-May-14-2024"]
[Site "Chess.com"]
[Date "2024.05.14"]
[Round "6"]
[White "ChessSwole"]
[Black "AniJak"]
[Result "1-0"]
[WhiteElo "2603"]
[BlackElo "2388"]
[TimeControl "180+1"]
[EndTime "9:06:44 PDT"]
[Termination "ChessSwole won by resignation"]

1. e4 {[%clk 0:03:00.9]} 1... c5 {[%clk 0:02:59.5]} 2. Nf3 {[%clk 0:03:00.6]}
2... e6 {[%clk 0:02:58.2]} 3. c3 {[%clk 0:03:00.9]} 3... d5 {[%clk 0:02:57.5]}
4. e5 {[%clk 0:03:00.5]} 4... d4 {[%clk 0:02:56.3]} 5. Bd3 {[%clk 0:03:00]} 5...
Nc6 {[%clk 0:02:54.1]} 6. O-O {[%clk 0:02:58.5]} 6... Nh6 {[%clk 0:02:48.2]} 7.
Be4 {[%clk 0:02:57.5]} 7... Nf5 {[%clk 0:02:44.8]} 8. b4 {[%clk 0:02:51]} 8...
cxb4 {[%clk 0:02:41.3]} 9. cxb4 {[%clk 0:02:45.5]} 9... Bxb4 {[%clk 0:02:34.1]}
10. Qa4 {[%clk 0:02:45.2]} 10... Qb6 {[%clk 0:02:30.2]} 11. Ba3 {[%clk
0:02:38.5]} 11... Bxa3 {[%clk 0:02:24.3]} 12. Nxa3 {[%clk 0:02:39.4]} 12... Bd7
{[%clk 0:02:23.8]} 13. Rab1 {[%clk 0:02:36.4]} 13... Qc7 {[%clk 0:02:19]} 14.
Nb5 {[%clk 0:02:36.5]} 14... Qa5 {[%clk 0:02:11.8]} 15. Qxa5 {[%clk 0:02:29.9]}
15... Nxa5 {[%clk 0:02:12.7]} 16. Nc7+ {[%clk 0:02:29.6]} 16... Ke7 {[%clk
0:02:13.2]} 17. Nxa8 {[%clk 0:02:27.9]} 17... Rxa8 {[%clk 0:02:14.1]} 18. Bxb7
{[%clk 0:02:27]} 18... Rb8 {[%clk 0:01:59.8]} 19. Be4 {[%clk 0:02:26.8]} 19...
Rc8 {[%clk 0:01:48.9]} 20. Rfc1 {[%clk 0:02:26.7]} 20... Kd8 {[%clk 0:01:33.4]}
21. Rxc8+ {[%clk 0:02:25.6]} 21... Kxc8 {[%clk 0:01:33.2]} 22. Bxf5 {[%clk
0:02:23.6]} 22... exf5 {[%clk 0:01:33.1]} 23. Nxd4 {[%clk 0:02:24.3]} 23... Kd8
{[%clk 0:01:29.2]} 24. f4 {[%clk 0:02:23.6]} 24... Nc4 {[%clk 0:01:28.2]} 25. d3
{[%clk 0:02:20.3]} 25... Ne3 {[%clk 0:01:24.9]} 26. Rb7 {[%clk 0:02:17.1]} 26...
a5 {[%clk 0:01:21.7]} 27. Ra7 {[%clk 0:02:13.2]} 27... a4 {[%clk 0:01:21.7]} 28.
h3 {[%clk 0:02:10]} 28... h5 {[%clk 0:01:17]} 29. Kf2 {[%clk 0:02:07.2]} 29...
Nd1+ {[%clk 0:01:14.6]} 30. Ke1 {[%clk 0:02:03.9]} 30... Nc3 {[%clk 0:01:14.6]}
31. a3 {[%clk 0:02:02.8]} 31... h4 {[%clk 0:01:11.7]} 32. Kf2 {[%clk 0:01:57.9]}
32... Nb1 {[%clk 0:01:03.2]} 33. Nc2 {[%clk 0:01:56.7]} 33... Bb5 {[%clk
0:01:02.3]} 34. Ke3 {[%clk 0:01:52.7]} 34... Ke8 {[%clk 0:01:00.6]} 35. Rb7
{[%clk 0:01:45.5]} 35... Nc3 {[%clk 0:00:58.4]} 36. Kd4 {[%clk 0:01:40.2]} 36...
Ne2+ {[%clk 0:00:53.8]} 37. Kc5 {[%clk 0:01:39.5]} 37... Bxd3 {[%clk 0:00:53.5]}
38. Kd6 {[%clk 0:01:37]} 38... f6 {[%clk 0:00:37.4]} 39. e6 {[%clk 0:01:37.5]}
1-0